Cogmind - Beta 14 *** ADVENTURER MODE // 2024.10.13 @ 19:11:37 Player: 7604 Result: Self-destructed Performance ------------- Evolutions (1) 500 Regions Visited (3) 600 Robots Destroyed (4) 20 Value Destroyed (162) 162 Prototype IDs (3) 60 Alien Tech Used (0) 0 Bonus (0) 0 TOTAL SCORE: 1342 Bonus ------- None Cogmind --------- Core Integrity 321/400 Matter 300/300 Energy 100/100 System Corruption 0% Temperature Cool (6) Movement Core (100) Ox1 Location -9/Materials Parts ------- > --- POWER (1) -------- (None) > --- PROPULSION (4) --- (None) > --- UTILITY (2) ------ Small Storage Unit > --- WEAPON (2) ------- (None) > --- INVENTORY (8) ---- Signal Interpreter Medium Armor Plating EM Pulse Gun Grenade Launcher Mining Laser Peak State ------------ > --- POWER ------------ Light Nuclear Core > --- PROPULSION ------- Aluminum Leg Aluminum Leg > --- UTILITY ---------- Improved Heat Sink Small Storage Unit > --- WEAPON ----------- Small Laser Light Assault Rifle > --- INVENTORY -------- Ion Engine Light Ion Engine Heat Sink Signal Interpreter EM Pulse Gun Datajack [Rating: 11] Favorites ----------- Power Light Ion Engine Engine Light Ion Engine Power Core Light Nuclear Core Propulsion Aluminum Leg Leg Aluminum Leg Utility Small Storage Unit Device Improved Heat Sink Storage Small Storage Unit Weapon Light Assault Rifle Energy Gun Small Laser Ballistic Gun Light Assault Rifle Build | -11 -10 -10 -9 ------- Run | Yrd Mat Min Mat Slots Evolved 2 | . . . 2 Power . | . . . . Propulsion 2 | . . . 2 Utility . | . . . . Weapon . | . . . . Parts Attached 15 | 7 3 5 . Power 3 | 1 1 1 . Engine 2 | 1 . 1 . Core 1 | . 1 . . Reactor . | . . . . Propulsion 4 | 2 . 2 . Treads . | . . . . Leg 4 | 2 . 2 . Wheel . | . . . . Hover . | . . . . Flight . | . . . . Utility 4 | 1 2 1 . Device 2 | . 2 . . Storage 2 | 1 . 1 . Processor . | . . . . Hackware . | . . . . Protection . | . . . . Artifact . | . . . . Weapon 4 | 3 . 1 . Energy Gun 3 | 2 . 1 . Energy Cannon . | . . . . Ballistic Gun 1 | 1 . . . Ballistic Cannon . | . . . . Launcher . | . . . . Special Weapon . | . . . . Impact Weapon . | . . . . Slashing Weapon . | . . . . Piercing Weapon . | . . . . Special Melee Weapon . | . . . . Unidentified Prototypes . | . . . . Parts Lost 8 | . . 7 1 Power 2 | . . 2 . Propulsion 3 | . . 3 . Utility 1 | . . . 1 Weapon 2 | . . 2 . Highest Loss Streak 6 | . . 6 1 To Critical Strikes . | . . . . Average Slot Usage (%) 87 | . 99 91 20 Engine 9 | . 10 11 . Core 1 | . 3 . . Leg 23 | . 28 25 . Device 13 | . 13 14 9 Storage 13 | . 14 14 11 Energy Gun 11 | . 14 12 . Ballistic Gun 12 | . 14 12 . Peak Build Rating 11 | 6 11 11 4 Average Rating 7 | 5 7 9 3 On Entrance 5 | . 6 11 4 Naked Turns . | . . . . Heaviest Build 13 | 10 13 13 6 Greatest Support 20 | 20 20 20 3 Greatest Overweight (x) 1 | 1 . 1 1 Average Overweight (x) . | . . . 1 Largest Inventory Capacity 8 | 8 8 8 8 Average Capacity 7 | 7 8 7 8 Most Carried 7 | 2 6 7 5 Average Carried 4 | 1 3 6 4 Final Capacity 8 | 8 8 8 8 Final Carried 5 | 2 5 4 5 Class Distribution -------------------- 100% | Mutant Dominant Class ---------------- Mutant | -10/Materials Mutant | -10/Mines Mutant | -9/Materials Resources | -11 -10 -10 -9 ----------- Run | Yrd Mat Min Mat Matter Collected 354 | 214 46 87 7 Remotely . | . . . . Salvage Created 178 | . 91 87 . Parts 8 | . 5 3 . Haulers Intercepted . | . . . . Recyclers Shooed . | . . . . Parts Field Recycled . | . . . . Retrieved Matter . | . . . . Parts Self-Destructed . | . . . . Prevented . | . . . . Kills | -11 -10 -10 -9 ------- Run | Yrd Mat Min Mat Combat Hostiles Destroyed 4 | . 2 2 . Guns 4 | . 2 2 . Classes Destroyed 1 | . 1 . . Grunt 4 | . 2 2 . Best Kill Streak 2 | . 2 2 . Combat Bots Only 2 | . 2 2 . Max Kills in Single Turn 1 | . 1 1 . Gunslinging . | . . . . Exploded . | . . . . Melee . | . . . . Uniques/NPCs Destroyed . | . . . . Combat | -11 -10 -10 -9 -------- Run | Yrd Mat Min Mat Hostile Shots Fired 72 | . 13 45 14 Missed 22 | . 4 15 3 Damage Taken 904 | . 82 710 112 Core 301 | . 17 205 79 Absorbed by Shields . | . . . . Ignored by Resistances 258 | . 26 197 35 Core Remaining (%) 55 | 100 . 11 . Volleys Fired 19 | . 8 11 . Largest 2 | . 2 2 . Hottest 60 | . 60 60 . Shots Fired 38 | . 16 22 . Gun 38 | . 16 22 . Cannon . | . . . . Launcher . | . . . . Special . | . . . . Kinetic 19 | . 8 11 . Thermal 19 | . 8 11 . Explosive . | . . . . Electromagnetic . | . . . . Robot Hit Streak 13 | . 9 13 . Robot Miss Streak 2 | . 1 2 . Penetration Max . | . . . . Secondary Targets 1 | . . 1 . Max Gunslinging Chain 1 | . . 1 . Shots Hit Robots 29 | . 11 18 . Core Hits 12 | . 6 6 . Critical Kills . | . . . . Critical Parts Destroyed . | . . . . Critical Strikes . | . . . . Melee Attacks . | . . . . Impact . | . . . . Slashing . | . . . . Piercing . | . . . . Sneak Attacks . | . . . . Combat Hostiles . | . . . . Follow-up Attacks . | . . . . Damage Inflicted 282 | . 103 179 . Guns 282 | . 103 179 . Cannons . | . . . . Explosions . | . . . . Melee . | . . . . Ramming . | . . . . Kinetic 114 | . 47 67 . Thermal 168 | . 56 112 . Explosive . | . . . . Electromagnetic . | . . . . Impact . | . . . . Slashing . | . . . . Piercing . | . . . . Highest Corruption . | . . . . Average Corruption . | . . . . Corruption Purged . | . . . . Corruption Blocked . | . . . . Overload Shots . | . . . . Overflow Damage . | . . . . Projectiles . | . . . . Explosions . | . . . . Melee . | . . . . Knockbacks . | . . . . Impact . | . . . . Kinetic . | . . . . Secondary . | . . . . Self-Inflicted Damage . | . . . . Shots . | . . . . Rammed . | . . . . Targets Rammed . | . . . . Kicked . | . . . . Crushed . | . . . . Highest Temperature 11 | . 10 11 . Average Temperature 7 | . 6 8 . Received Heat Transfer 273 | . 63 126 84 Siege Activations . | . . . . Robots Corrupted . | . . . . Combat Hostiles . | . . . . Parts Fried . | . . . . Impact Corruptions . | . . . . Robots Melted . | . . . . Combat Hostiles . | . . . . Parts Melted . | . . . . Heat Transferred 375 | . 125 250 . Parts Sabotaged . | . . . . Parts Stolen . | . . . . Parts Stripped . | . . . . Power Chain Reactions . | . . . . Alert | -11 -10 -10 -9 ------- Run | Yrd Mat Min Mat Peak Influence 78 | . 78 65 . Initial 25 | . . 25 . Average 27 | . 24 54 . Maximum Alert Level . | . . . . Low Security (%) 100 | 100 100 100 100 Level 1 . | . . . . Level 2 . | . . . . Level 3 . | . . . . Level 4 . | . . . . Level 5 . | . . . . High Security . | . . . . Max Security . | . . . . Squads Dispatched 1 | . 1 . . Investigation 1 | . 1 . . Extermination . | . . . . Reinforcement . | . . . . Assault . | . . . . Garrison . | . . . . Intercept . | . . . . Searches Triggered . | . . . . Construction Impeded . | . . . . Haulers Reinforced . | . . . . Active Scanning Responses . | . . . . Cargo Convoy Interrupts . | . . . . Stealth | -11 -10 -10 -9 --------- Run | Yrd Mat Min Mat Distress Signals 1 | . . . 1 Communications Jammed . | . . . . Distress Signals . | . . . . Times Spotted 20 | . 2 15 3 Peak Tracking Total 10 | . 2 10 3 Tactical Retreats . | . . . . Traps | -11 -10 -10 -9 ------- Run | Yrd Mat Min Mat Traps Triggered 1 | . 1 . . Indirectly . | . . . . Trap Hack Attempts . | . . . . Triggered . | . . . . Disarmed . | . . . . Reprogrammed . | . . . . Reused . | . . . . Traps Extracted . | . . . . Installed . | . . . . Triggered . | . . . . Machines | -11 -10 -10 -9 ---------- Run | Yrd Mat Min Mat Machines Disabled . | . . . . Max in Single Turn . | . . . . Machines Repaired . | . . . . Machines Dismantled . | . . . . Machines Sabotaged . | . . . . Overloaded Fab Kills . | . . . . Hacking | -11 -10 -10 -9 --------- Run | Yrd Mat Min Mat Machines Accessed 6 | . 4 . 2 Terminals 6 | . 4 . 2 Fabricators . | . . . . Repair Stations . | . . . . Recycling Units . | . . . . Scanalyzers . | . . . . Garrison Access . | . . . . Total Hacks 17 | . 11 . 6 Successful 5 | . 5 . . Failed 12 | . 6 . 6 Catastrophic 1 | . 1 . . Database Lockouts . | . . . . Manual 13 | . 7 . 6 Terminals 17 | . 11 . 6 Fabricators . | . . . . Repair Stations . | . . . . Recycling Units . | . . . . Scanalyzers . | . . . . Garrison Access . | . . . . Terminal Hacks 5 | . 5 . . Part Schematic 1 | . 1 . . Robot Analysis 1 | . 1 . . Prototype ID Bank 1 | . 1 . . Branch Access Points 1 | . 1 . . Terminal Index 1 | . 1 . . Fabricator Hacks . | . . . . Repair Station Hacks . | . . . . Recycling Unit Hacks . | . . . . Scanalyzer . | . . . . Garrison Access Hacks . | . . . . Unauthorized Hacks . | . . . . Terminals . | . . . . Fabricators . | . . . . Repair Stations . | . . . . Recycling Units . | . . . . Scanalyzers . | . . . . Garrison Access . | . . . . Data Cores Recovered . | . . . . Used . | . . . . Hacking Detections 6 | . 4 . 2 Full Trace Events . | . . . . Feedback Events . | . . . . Feedback Blocked . | . . . . Robot Schematics Acquired . | . . . . Robots Built . | . . . . Authchips . | . . . . Time . | . . . . Total Robot Build Rating . | . . . . Part Schematics Acquired 1 | . 1 . . Parts Built . | . . . . Authchips . | . . . . Time . | . . . . Total Part Build Rating . | . . . . Parts Repaired . | . . . . Time . | . . . . Parts Recycled . | . . . . Recycled Matter . | . . . . Retrieved Matter . | . . . . Retrieved Components . | . . . . Parts Scanalyzed . | . . . . Part Schematics Acquired . | . . . . Parts Damaged . | . . . . Bothacking | -11 -10 -10 -9 ------------ Run | Yrd Mat Min Mat Used RIF Installer . | . . . . Robots Hacked . | . . . . Non-combat . | . . . . Combat . | . . . . Robot Hacks Applied . | . . . . Relay Couplers Released . | . . . . Fabnet Peak Effective % . | . . . . Robots Rewired . | . . . . Allies Hacked . | . . . . Hacks Repelled . | . . . . Allies | -11 -10 -10 -9 -------- Run | Yrd Mat Min Mat Total Allies . | . . . . Largest Group . | . . . . Highest-Rated Group . | . . . . Highest-Rated Ally . | . . . . Total Orders . | . . . . Ally Attacks . | . . . . Total Damage . | . . . . Kills . | . . . . Allies Corrupted . | . . . . Allies Melted . | . . . . Intel | -11 -10 -10 -9 ------- Run | Yrd Mat Min Mat Robot Analysis Total 1 | . 1 . . Derelict Logs Recovered 2 | . . 2 . Drone Launches . | . . . . Drone Recoveries . | . . . . Exploration | -11 -10 -10 -9 ------------- Run | Yrd Mat Min Mat Turns Passed 1191 | 341 320 448 82 Spaces Moved 678 | 105 230 262 81 Core 126 | 12 . 33 81 Treads . | . . . . Legs 552 | 93 230 229 . Wheels . | . . . . Hover . | . . . . Flight . | . . . . Fastest Speed 50 | 50 120 50 100 Average Speed 115 | 114 120 117 100 Slowest Speed 120 | 120 120 120 100 Overloaded Moves . | . . . . Propulsion Burnouts . | . . . . Robots Hopped . | . . . . Cave-ins Triggered . | . . . . Exploration Rate (%) 26 | 9 30 51 14 Regions Visited 3 Branch Regions 1 Pre-discovered Areas 1 | . . 1 . Known Exits Taken 1 | . 1 . . Unknown Exits Taken 2 | 1 . 1 . Scrap Searched . | . . . . Spaces Dug . | . . . . Terrain Destroyed . | . . . . Melee . | . . . . Projectile . | . . . . AOE . | . . . . Terrain Rammed . | . . . . Walls Destroyed . | . . . . Machines Disabled . | . . . . Actions | -11 -10 -10 -9 --------- Run | Yrd Mat Min Mat Total 1045 | 322 259 382 82 Wait 324 | 209 13 102 . Move 675 | 104 229 261 81 Hop . | . . . . Pick Up 8 | 2 4 1 1 Fast Attach 9 | 6 1 2 . Attach 2 | . . 2 . Detach 1 | . . 1 . Swap 4 | 1 2 1 . Drop 3 | . 2 1 . Fire 19 | . 8 11 . Melee . | . . . . Ram . | . . . . Kick . | . . . . Crush . | . . . . Escape Stasis . | . . . . Rewire . | . . . . Trap . | . . . . Miscellaneous . | . . . . Route ------- -11/Scrapyard -10/Materials -10/Mines -9/Materials History --------- Turn | Location | Event 10 | -11/Scrapyard | Discovered new exit (range 15) 342 | -11/Scrapyard | Entered Materials 343 | -10/Materials | Build established: Mutant 468 | -10/Materials | Identified exit to Mines 662 | -10/Materials | Entered Mines 692 | -10/Mines | Met a Derelict bent on vengeance 797 | -10/Mines | Discovered new exit (range 10) 1030 | -10/Mines | Assembled infested the area 1042 | -10/Mines | Learned 2 Materials zone layouts 1075 | -10/Mines | Core integrity fell below 50% 1079 | -10/Mines | Core integrity fell below 20% 1102 | -10/Mines | Learned location of Zion (-7) 1109 | -10/Mines | Lost 6 parts (1p3n2w) 1110 | -10/Mines | Entered Materials 1110 | -9/Materials | Evolved 2 slots: Propulsion x2 1192 | -9/Materials | Self-destructed Last Messages --------------- 01082_ The unstable cave ceiling collapses. 01082_ Acquired 3 matter. 01083_ The unstable cave ceiling collapses. 01083_ as-20895 destroyed. 01083_ D-53 Grenadier destroyed. 01084_ K-01 Serf collects debris. 01102_ Acquired derelict log, extracted data. World map updated: -7/Zion. PARAMETERS=PROPULSION+2 LOCATION=UNKNOWN GOAL=ESCAPE Loading 2 Materials zones... 01119_ Acquired 7 matter. 01122_ Acquired Med. Armor Plating. 01140_ Connecting with Terminal... 01140_ Current location identified: Materials 01156_ Connecting with Terminal... 01180_ Imp. Heat Sink destroyed. 01192_ O-16 Technician: "IFF HANDSHAKE FAILED. SECURING TERMINAL." Map ----- +----------------------------------------------------+ | | | ###########??????????????????????????????????????? | | #??????????????????????????????????????? | | #??????????????????????????????????????? | | #?????##########???????????????????????? | | #?????# #???????????????????????? | | [ ####### "T" #???????????????????????? | | #######+### # #???????????????????????? | | ???# # #???????????????????????? | | ???# + ! #???????????????????????? | | ???# # """ #???????????????????????? | | #######+### # """ #???????????????????????? | | # ## ## """ #???????????????????????? | | # ## ## #???????????????????????? | | # """ ""## ###########???????????????????????? | | # """"" ""## #?????????????????????????????????? | | # """"" T"## #?????????????????????????????????? | | # """"" ""## #?????????????????????????????????? | | # """ ""## #?????????????????????????????????? | | # ## #?????????????????#???????????????? | | ############ #???????????????? ??????????????? | | ?# # #?????#######??" ??????????????? | | ?# + ####### #?"T """?????????????? | | ?# """ """ # # "" """?????????????? | | ?# """ """ # gg + ????????????????? | | ?# """ """ # @ #?????????????????????? | | ?# #######+### #?????????????????????? | | ?# #???? ## ##?????????????????????? | | ?# #?? "" ## #??????????????????????? | | ?############ "" ## #??????????????????????? | | ????????????# T" ## #??????????????????????? | | ????????????# "" ## #??????????????????????? | | ????????????# "" ## #??????????????????????? | | ????????????# ?? ## #??????????????????????? | | ????????????# ?? ## #??????????????????????? | | ????????????# ????# #??????????????????????? | | ????????????######????# #??????????????????????? | | ??????????????????????# #??????????????????????? | | ??????????????????????# #??????????????????????? | | ??????????????????????# #??????????????????????? | | ??????????????????????? ???????????????????????? | | ?????????????????????????????????????????????????? | | ?????????????????????????????????????????????????? | | ?????????????????????????????????????????????????? | | ?????????????????????????????????????????????????? | | ?????????????????????????????????????????????????? | | ?????????????????????????????????????????????????? | | ?????????????????????????????????????????????????? | | ?????????????????????????????????????????????????? | | ?????????????????????????????????????????????????? | +----------------------------------------------------+ Best States ------------- Heat Dissipation 42 Energy Generation 14 Energy Capacity 160 Matter Stores 300 Matter Capacity 300 Sight Range 16 Terrain Scan Density 10 Resistance: KI 20 Resistance: TH 20 Resistance: EX 20 Resistance: EM 20 Resistance: I 20 Resistance: S 20 Resistance: P 20 Evasion (%) 55 Offensive Hacking 10 Item Schematics ----------------- Structural Scanner | -10/Materials | Hacked Robot Schematics ------------------ None Fabricated ------------ Nothing Alien Tech Used ----------------- None Achievements -------------- None Challenges ------------ None Game ------ Seed SuspensionTerrabombBooster Manual? 0 Play Time 00:09:06 Cumulative 79.8 hours Start 2024.10.13 @ 19:02:40 End 2024.10.13 @ 19:11:37 Sessions 1 Manual Loads 0 Difficulty Adventurer Special Mode None Game No. 42 Rogue 0 Adventurer 42 Explorer 0 Win Type - Total 3 Types 3/0/0/0/0/0/0/0/0 Lore% 43 Gallery% 52 Achievement% 43 Wizard Run 0 Options --------- Layout 1 ASCII 0 Keyboard 1 Movement Numpad Keybinds 0 Fullscreen 1 Font 24/Tamsyn Map View 50x35 Zoom Use 0% Tactical HUD 1 Map Filters NONE Filters NONE Steam 1 RUN: c03c7b4b-ff1d-478c-952f-205d01d0b9f2